{"text_format":"3","workbook":"xlsx","n_sheets":4,"sheets":["الملخص","الأصول","الالتزامات","الفئات"],"not_rendered":{"defined_names":10},"read":"whole","date_system":"1900"}

{"sheet":"الملخص","index":0,"n_rows":12,"n_cols":4,"rows_kept":12}
[null,"الميزانية العمومية"]
[null,null,{"$f":"\"FY-\"&YEAR(TODAY())-1","v":"FY-2016"},{"$f":"\"FY-\"&YEAR(TODAY())","v":"FY-2017"}]
[null,"أنواع الأصول","السنة السابقة","السنة الحالية"]
[null,"الأصول الحالية",{"$f":"SUMIFS(الأصول[السنة السابقة],الأصول[أنواع الأصول],لوحة_المعلومات[[#This Row],[أنواع الأصول]])+SUMIFS(الالتزامات[السنة السابقة],الالتزامات[نوع الالتزامات],لوحة_المعلومات[[#This Row],[أنواع الأصول]])","v":600},{"$f":"SUMIFS(الأصول[السنة الحالية],الأصول[أنواع الأصول],لوحة_المعلومات[[#This Row],[أنواع الأصول]])+SUMIFS(الالتزامات[السنة الحالية],الالتزامات[نوع الالتزامات],لوحة_المعلومات[[#This Row],[أنواع الأصول]])","v":600}]
[null,"الأصول الثابتة",{"$f":"SUMIFS(الأصول[السنة السابقة],الأصول[أنواع الأصول],لوحة_المعلومات[[#This Row],[أنواع الأصول]])+SUMIFS(الالتزامات[السنة السابقة],الالتزامات[نوع الالتزامات],لوحة_المعلومات[[#This Row],[أنواع الأصول]])","v":{"v":-100,"d":"100"}},{"$f":"SUMIFS(الأصول[السنة الحالية],الأصول[أنواع الأصول],لوحة_المعلومات[[#This Row],[أنواع الأصول]])+SUMIFS(الالتزامات[السنة الحالية],الالتزامات[نوع الالتزامات],لوحة_المعلومات[[#This Row],[أنواع الأصول]])","v":{"v":-85,"d":"85"}}]
[null,"الأصول الأخرى",{"$f":"SUMIFS(الأصول[السنة السابقة],الأصول[أنواع الأصول],لوحة_المعلومات[[#This Row],[أنواع الأصول]])+SUMIFS(الالتزامات[السنة السابقة],الالتزامات[نوع الالتزامات],لوحة_المعلومات[[#This Row],[أنواع الأصول]])","v":0},{"$f":"SUMIFS(الأصول[السنة الحالية],الأصول[أنواع الأصول],لوحة_المعلومات[[#This Row],[أنواع الأصول]])+SUMIFS(الالتزامات[السنة الحالية],الالتزامات[نوع الالتزامات],لوحة_المعلومات[[#This Row],[أنواع الأصول]])","v":0}]
[null,"الالتزامات الحالية",{"$f":"SUMIFS(الأصول[السنة السابقة],الأصول[أنواع الأصول],لوحة_المعلومات[[#This Row],[أنواع الأصول]])+SUMIFS(الالتزامات[السنة السابقة],الالتزامات[نوع الالتزامات],لوحة_المعلومات[[#This Row],[أنواع الأصول]])","v":500},{"$f":"SUMIFS(الأصول[السنة الحالية],الأصول[أنواع الأصول],لوحة_المعلومات[[#This Row],[أنواع الأصول]])+SUMIFS(الالتزامات[السنة الحالية],الالتزامات[نوع الالتزامات],لوحة_المعلومات[[#This Row],[أنواع الأصول]])","v":350}]
[null,"الالتزامات طويلة الأمد",{"$f":"SUMIFS(الأصول[السنة السابقة],الأصول[أنواع الأصول],لوحة_المعلومات[[#This Row],[أنواع الأصول]])+SUMIFS(الالتزامات[السنة السابقة],الالتزامات[نوع الالتزامات],لوحة_المعلومات[[#This Row],[أنواع الأصول]])","v":0},{"$f":"SUMIFS(الأصول[السنة الحالية],الأصول[أنواع الأصول],لوحة_المعلومات[[#This Row],[أنواع الأصول]])+SUMIFS(الالتزامات[السنة الحالية],الالتزامات[نوع الالتزامات],لوحة_المعلومات[[#This Row],[أنواع الأصول]])","v":0}]
[null,"حقوق المساهمين",{"$f":"SUMIFS(الأصول[السنة السابقة],الأصول[أنواع الأصول],لوحة_المعلومات[[#This Row],[أنواع الأصول]])+SUMIFS(الالتزامات[السنة السابقة],الالتزامات[نوع الالتزامات],لوحة_المعلومات[[#This Row],[أنواع الأصول]])","v":0},{"$f":"SUMIFS(الأصول[السنة الحالية],الأصول[أنواع الأصول],لوحة_المعلومات[[#This Row],[أنواع الأصول]])+SUMIFS(الالتزامات[السنة الحالية],الالتزامات[نوع الالتزامات],لوحة_المعلومات[[#This Row],[أنواع الأصول]])","v":350}]
[null,"إجمالي الأصول",{"$f":"الأصول[[#Totals],[السنة السابقة]]","v":500},{"$f":"الأصول[[#Totals],[السنة الحالية]]","v":515}]
[null,"إجمالي الالتزامات وحقوق المساهمين",{"$f":"الالتزامات[[#Totals],[السنة السابقة]]","v":500},{"$f":"الالتزامات[[#Totals],[السنة الحالية]]","v":700}]
[null,"الميزانية",{"$f":"C10-C11","v":0},{"$f":"D10-D11","v":{"v":-185,"d":"185"}}]

{"sheet":"الأصول","index":1,"n_rows":14,"n_cols":5,"rows_kept":14}
[null,"الأصول"]
[{"$nulls":3},{"$f":"FY_YEAR","v":"FY-2016"},{"$f":"FY_YEAR_2","v":"FY-2017"}]
[null,"أنواع الأصول","الوصف","السنة السابقة","السنة الحالية"]
[null,"الأصول الحالية","النقد",600,600]
[null,"الأصول الحالية","الاستثمارات"]
[null,"الأصول الحالية","وحدات المخزون"]
[null,"الأصول الحالية","الحسابات المدينة"]
[null,"الأصول الحالية","مصروفات مسبقة الدفع"]
[null,"الأصول الثابتة","الممتلكات والمعدات"]
[null,"الأصول الثابتة","تحسينات في العقارات المؤجرة"]
[null,"الأصول الثابتة","استثمارات الأسهم واستثمارات أخرى"]
[null,"الأصول الثابتة","مجموع الإهلاك أقل (قيم سالبة)",{"v":-100,"d":"100"},{"v":-85,"d":"85"}]
[null,"الأصول الأخرى","الأعمال الخيرية"]
[null,"إجمالي الأصول",null,{"$f":"SUBTOTAL(109,الأصول[السنة السابقة])","v":500},{"$f":"SUBTOTAL(109,الأصول[السنة الحالية])","v":515}]

{"sheet":"الالتزامات","index":2,"n_rows":12,"n_cols":5,"rows_kept":12}
[null,"الالتزامات"]
[{"$nulls":3},{"$f":"FY_YEAR","v":"FY-2016"},{"$f":"FY_YEAR_2","v":"FY-2017"}]
[null,"نوع الالتزامات","الوصف","السنة السابقة","السنة الحالية"]
[null,"الالتزامات الحالية","حسابات دائنة",null,350]
[null,"الالتزامات الحالية","الأجور المستحقة"]
[null,"الالتزامات الحالية","التعويضات المستحقة",500]
[null,"الالتزامات الحالية","ضرائب الدخل مستحقة الدفع"]
[null,"الالتزامات الحالية","الإيرادات غير المكتسبة"]
[null,"الالتزامات طويلة الأمد","الرهن مستحق الدفع"]
[null,"حقوق المساهمين","رأس مال الاستثمار",null,350]
[null,"حقوق المساهمين","الأرباح المحتجزة التراكمية"]
[null,"إجمالي الالتزامات وحقوق المساهمين",null,{"$f":"SUBTOTAL(109,الالتزامات[السنة السابقة])","v":500},{"$f":"SUBTOTAL(109,الالتزامات[السنة الحالية])","v":700}]

{"sheet":"الفئات","index":3,"n_rows":9,"n_cols":2,"rows_kept":9}
[null,"الفئات"]
[]
[null,"الفئات"]
[null,"الأصول الحالية"]
[null,"الأصول الثابتة"]
[null,"الأصول الأخرى"]
[null,"الالتزامات الحالية"]
[null,"الالتزامات طويلة الأمد"]
[null,"حقوق المساهمين"]